[Event "58th Akiba Rubinstein D 2022"]
[Site "Polanica-Zdroj"]
[Date "2022.08.13"]
[Round "1.18"]
[White "Ursnik, Patryk"]
[Black "Szalbierz, Piotr"]
[Result "1/2-1/2"]
[ECO "C00"]
[WhiteElo "1671"]
[BlackElo "1407"]
[Annotator "NA RC COMBH"]
[PlyCount "61"]
[EventDate "2022.08.13"]
[EventCountry "POL"]
[SourceTitle "playchess.com"]
[Source "ChessBase"]
[SourceQuality "1"]
[TimeControl "40/5400+30:1800+30"]

1. e4 {[%emt 0:06:35]} e6 {[%emt 0:00:03]} 2. e5 {[%emt 0:00:06]} d5 3. exd6 Bxd6 {[%emt 0:01:07]} 4. d4 {[%emt 0:00:32]} Nf6 {[%emt 0:00:32]} 5. Nf3 {[%emt 0:00:07]} O-O {[%emt 0:03:09]} 6. Bc4 {[%emt 0:00:03]} Nbd7 {[%emt 0:01:50]} 7. O-O {[%emt 0:00:13]} a6 {[%emt 0:03:44]} 8. a4 {[%emt 0:00:11]} b6 {[%emt 0:02:18]} 9. Bg5 {[%emt 0:00:20]} Bb7 {[%emt 0:00:15]} 10. Re1 {[%emt 0:01:05]} c5 {[%emt 0:01:16]} 11. c3 {[%emt 0:00:02]} Qc7 {[%emt 0:01:59]} 12. Nbd2 {[%emt 0:01:00]} cxd4 {[%emt 0:06:19]} 13. cxd4 {[%emt 0:01:04]} Bd5 {[%emt 0:12:29]} 14. Rc1 {[%emt 0:04:47]} Qb7 {[%emt 0:00:34]} 15. Qb3 {[%emt 0:01:52]} Rac8 {[%emt 0:10:20]} 16. Qd3 {[%emt 0:04:08]} Bxc4 {[%emt 0:07:23]} 17. Nxc4 {[%emt 0:00:27]} Bb4 {[%emt 0:00:09]} 18. Bd2 {[%emt 0:01:01]} Bxd2 {[%emt 0:02:27]} 19. Qxd2 {[%emt 0:00:05]} Qb8 {[%emt 0:04:07]} 20. Nce5 {[%emt 0:01:58]} Qb7 {[%emt 0:03:31]} 21. Qf4 {[%emt 0:03:55]} Nd5 {[%emt 0:03:55]} 22. Qd2 {[%emt 0:04:37]} Rfd8 {[%emt 0:06:16]} 23. Nxd7 {[%emt 0:00:13]} Qxd7 {[%emt 0:00:37]} 24. Ne5 {[%emt 0:00:15]} Qb7 {[%emt 0:00:40]} 25. h3 {[%emt 0:02:49]} Rxc1 {[%emt 0:04:24]} 26. Rxc1 {[%emt 0:02:16]} Rc8 {[%emt 0:00:12]} 27. Nd3 {[%emt 0:02:17]} Rxc1+ 28. Qxc1 Qc7 {[%emt 0:01:55]} 29. Qxc7 {[%emt 0:01:25]} Nxc7 {[%emt 0:00:02]} 30. Kf1 {[%emt 0:00:15]} a5 {[%emt 0:01:53]} 31. b4 {[%emt 0:00:33]} 1/2-1/2

[Event "58th Akiba Rubinstein D 2022"]
[Site "Polanica-Zdroj"]
[Date "2022.08.13"]
[Round "1.19"]
[White "Boryna, Szymon"]
[Black "Kraczek, Cezary"]
[Result "0-1"]
[ECO "A28"]
[WhiteElo "1434"]
[BlackElo "1657"]
[Annotator "NA RC COMBH"]
[PlyCount "66"]
[EventDate "2022.08.13"]
[EventCountry "POL"]
[SourceTitle "playchess.com"]
[Source "ChessBase"]
[SourceQuality "1"]
[TimeControl "40/5400+30:1800+30"]

1. c4 {[%emt 0:00:05]} e5 {[%emt 0:00:10]} 2. Nc3 {[%emt 0:00:05]} Nf6 {[%emt 0:01:04]} 3. Nf3 {[%emt 0:00:13]} Nc6 {[%emt 0:00:54]} 4. e3 {[%emt 0:00:20]} d5 {[%emt 0:01:41]} 5. cxd5 {[%emt 0:00:27]} Nxd5 {[%emt 0:00:08]} 6. Bb5 {[%emt 0:00:02]} Nxc3 {[%emt 0:00:36]} 7. bxc3 {[%emt 0:00:42]} Bd6 {[%emt 0:00:14]} 8. d4 {[%emt 0:01:02]} e4 {[%emt 0:01:25]} 9. Nd2 {[%emt 0:00:09]} Qg5 {[%emt 0:00:19]} 10. Bxc6+ {[%emt 0:04:06]} bxc6 {[%emt 0:00:38]} 11. Qa4 {[%emt 0:14:11]} Bd7 {[%emt 0:05:27]} 12. Qc2 {[%emt 0:03:36]} f5 {[%emt 0:01:30]} 13. g3 {[%emt 0:05:47]} O-O {[%emt 0:07:53]} 14. Nc4 Kh8 {[%emt 0:08:50]} 15. Nxd6 {[%emt 0:07:28]} cxd6 {[%emt 0:00:02]} 16. Ba3 {[%emt 0:00:16]} Qf6 {[%emt 0:02:25]} 17. Rb1 {[%emt 0:01:33]} Rab8 {[%emt 0:03:55]} 18. O-O {[%emt 0:00:52]} Rxb1 {[%emt 0:07:26]} 19. Rxb1 {[%emt 0:00:12]} f4 {[%emt 0:01:10]} 20. exf4 {[%emt 0:03:38]} Bg4 {[%emt 0:01:41]} 21. Rb7 {[%emt 0:02:47]} Bf3 {[%emt 0:00:46]} 22. Qc1 {[%emt 0:04:27]} Qe6 {[%emt 0:01:16]} 23. Qe1 {[%emt 0:05:08]} h6 {[%emt 0:02:41]} 24. Bc1 {[%emt 0:19:01]} Qxa2 {[%emt 0:03:36]} 25. Rc7 {[%emt 0:03:11]} Rb8 {[%emt 0:01:36]} 26. f5 {[%emt 0:02:17]} Rb1 {[%emt 0:01:41]} 27. f6 {[%emt 0:01:06]} g5 {[%emt 0:08:17]} 28. Qf1 {[%emt 0:16:25]} Kg8 29. h3 {[%emt 0:03:39]} e3 {[%emt 0:15:40]} 30. f7+ {[%emt 0:01:49]} Kf8 {[%emt 0:00:58]} 31. Rc8+ {[%emt 0:00:52]} Kxf7 {[%emt 0:00:06]} 32. Rc7+ {[%emt 0:00:09]} Ke8 {[%emt 0:00:28]} 33. Qe1 {[%emt 0:00:42]} Rxc1 {[%emt 0:00:23]} 0-1

[Event "58th Akiba Rubinstein D 2022"]
[Site "Polanica-Zdroj"]
[Date "2022.08.13"]
[Round "1.21"]
[White "Juszczak, Milosz"]
[Black "Bialik, Nikodem"]
[Result "1/2-1/2"]
[ECO "A03"]
[WhiteElo "1387"]
[BlackElo "1638"]
[Annotator "NA RC COMBH"]
[PlyCount "127"]
[EventDate "2022.08.13"]
[EventCountry "POL"]
[SourceTitle "playchess.com"]
[Source "ChessBase"]
[SourceQuality "1"]
[TimeControl "40/5400+30:1800+30"]

1. f4 {[%emt 0:03:04]} d5 {[%emt 0:03:07]} 2. d4 {[%emt 0:00:12]} Bf5 {[%emt 0:00:21]} 3. Nf3 {[%emt 0:00:20]} e6 {[%emt 0:00:43]} 4. e3 {[%emt 0:00:13]} a6 {[%emt 0:00:59]} 5. c4 {[%emt 0:00:27]} dxc4 {[%emt 0:01:15]} 6. Bxc4 {[%emt 0:00:17]} b5 {[%emt 0:00:25]} 7. Bd3 {[%emt 0:05:04]} Bxd3 {[%emt 0:02:19]} 8. Qxd3 {[%emt 0:00:02]} Nf6 {[%emt 0:00:44]} 9. Nc3 {[%emt 0:02:54]} Be7 {[%emt 0:02:39]} 10. O-O {[%emt 0:04:18]} c5 {[%emt 0:04:38]} 11. Rd1 {[%emt 0:05:17]} O-O {[%emt 0:06:55]} 12. d5 {[%emt 0:02:08]} exd5 {[%emt 0:01:12]} 13. Nxd5 {[%emt 0:00:13]} Nxd5 {[%emt 0:00:06]} 14. Qxd5 {[%emt 0:00:01]} Qxd5 {[%emt 0:00:07]} 15. Rxd5 {[%emt 0:00:02]} Nc6 {[%emt 0:00:35]} 16. Ne5 {[%emt 0:06:50]} Nxe5 {[%emt 0:01:37]} 17. Rxe5 {[%emt 0:00:09]} Rfe8 {[%emt 0:01:05]} 18. e4 {[%emt 0:05:57]} f6 {[%emt 0:00:43]} 19. Re6 {[%emt 0:01:21]} Kf7 {[%emt 0:00:38]} 20. Rc6 {[%emt 0:01:18]} Rec8 {[%emt 0:00:57]} 21. Rxc8 {[%emt 0:01:15]} Rxc8 {[%emt 0:00:05]} 22. Be3 {[%emt 0:01:45]} Rd8 {[%emt 0:00:17]} 23. b3 {[%emt 0:01:01]} Rd3 {[%emt 0:00:12]} 24. Kf2 {[%emt 0:00:58]} Rc3 {[%emt 0:01:36]} 25. Rc1 {[%emt 0:07:24]} Rxc1 {[%emt 0:00:44]} 26. Bxc1 {[%emt 0:00:02]} Ke6 {[%emt 0:00:29]} 27. g4 {[%emt 0:01:33]} c4 {[%emt 0:01:38]} 28. bxc4 {[%emt 0:00:30]} bxc4 {[%emt 0:00:23]} 29. h4 {[%emt 0:07:31]} Bb4 {[%emt 0:00:53]} 30. g5 {[%emt 0:03:29]} Bc3 {[%emt 0:01:31]} 31. Ke3 {[%emt 0:03:50]} f5 {[%emt 0:06:25]} 32. h5 {[%emt 0:01:54]} g6 {[%emt 0:00:48]} 33. hxg6 {[%emt 0:00:51]} hxg6 {[%emt 0:00:11]} 34. Ba3 {[%emt 0:00:52]} Ba1 {[%emt 0:03:42]} 35. Bc1 {[%emt 0:09:08]} Bc3 {[%emt 0:00:38]} 36. Ba3 {[%emt 0:00:28]} fxe4 {[%emt 0:03:14]} 37. Kxe4 {[%emt 0:00:14]} Bd2 {[%emt 0:00:03]} 38. Kd4 {[%emt 0:09:16]} c3 {[%emt 0:01:25]} 39. Bb4 {[%emt 0:00:15]} Kf5 {[%emt 0:00:22]} 40. Bxc3 Bxc3+ {[%emt 0:00:39]} 41. Kxc3 {[%emt 0:30:28]} Kxf4 {[%emt 0:30:07]} 42. Kb4 {[%emt 0:00:13]} Kxg5 {[%emt 0:00:07]} 43. Ka5 {[%emt 0:00:09]} Kf6 {[%emt 0:00:06]} 44. Kxa6 {[%emt 0:00:14]} g5 {[%emt 0:00:04]} 45. Kb7 {[%emt 0:00:27]} g4 {[%emt 0:00:07]} 46. a4 {[%emt 0:00:04]} g3 {[%emt 0:00:04]} 47. a5 {[%emt 0:00:21]} g2 {[%emt 0:00:04]} 48. a6 {[%emt 0:00:07]} g1=Q {[%emt 0:00:07]} 49. a7 {[%emt 0:00:06]} Qg2+ {[%emt 0:00:07]} 50. Kb8 {[%emt 0:00:18]} Qg8+ {[%emt 0:00:33]} 51. Kb7 {[%emt 0:00:11]} Qf7+ {[%emt 0:00:08]} 52. Kb8 {[%emt 0:00:08]} Qe8+ {[%emt 0:00:07]} 53. Kb7 {[%emt 0:00:15]} Qd7+ {[%emt 0:00:17]} 54. Kb8 {[%emt 0:00:10]} Qb5+ {[%emt 0:01:13]} 55. Ka8 {[%emt 0:00:38]} Qc4 {[%emt 0:03:32]} 56. Kb7 {[%emt 0:00:20]} Qd5+ {[%emt 0:00:17]} 57. Kb8 {[%emt 0:00:19]} Qg8+ 58. Kb7 Qf7+ 59. Kb8 Qe8+ 60. Kb7 Qd7+ 61. Kb8 Qb5+ 62. Ka8 Qc4 63. Kb7 Qd5+ 64. Kb8 1/2-1/2

[Event "58th Akiba Rubinstein D 2022"]
[Site "Polanica-Zdroj"]
[Date "2022.08.13"]
[Round "1.22"]
[White "Karpinski, Andrzej"]
[Black "Suszczynski, Dominik"]
[Result "1/2-1/2"]
[ECO "C45"]
[WhiteElo "1634"]
[BlackElo "1329"]
[Annotator "NA RC COMBH"]
[PlyCount "68"]
[EventDate "2022.08.13"]
[EventCountry "POL"]
[SourceTitle "playchess.com"]
[Source "ChessBase"]
[SourceQuality "1"]
[TimeControl "40/5400+30:1800+30"]

1. e4 {[%emt 0:00:03]} e5 {[%emt 0:00:05]} 2. Nf3 {[%emt 0:00:15]} Nc6 {[%emt 0:00:06]} 3. d4 {[%emt 0:00:28]} exd4 {[%emt 0:00:10]} 4. Nxd4 {[%emt 0:01:04]} Bc5 {[%emt 0:00:12]} 5. Be3 {[%emt 0:00:30]} Qf6 {[%emt 0:01:42]} 6. c3 {[%emt 0:01:10]} Nge7 {[%emt 0:05:27]} 7. Bc4 {[%emt 0:04:10]} O-O {[%emt 0:03:31]} 8. O-O {[%emt 0:01:09]} a6 {[%emt 0:04:35]} 9. Nc2 {[%emt 0:04:05]} Bxe3 {[%emt 0:09:13]} 10. Nxe3 {[%emt 0:00:15]} d6 {[%emt 0:03:53]} 11. Nd2 {[%emt 0:03:03]} Ng6 {[%emt 0:15:47]} 12. Nd5 {[%emt 0:03:45]} Qd8 {[%emt 0:00:09]} 13. f4 {[%emt 0:01:19]} Na5 {[%emt 0:10:00]} 14. Kh1 {[%emt 0:26:35]} Nxc4 {[%emt 0:00:24]} 15. Nxc4 {[%emt 0:00:05]} f5 {[%emt 0:07:27]} 16. exf5 {[%emt 0:02:28]} Bxf5 {[%emt 0:00:28]} 17. Nde3 {[%emt 0:04:01]} Be4 {[%emt 0:09:03]} 18. Qd4 {[%emt 0:04:38]} d5 {[%emt 0:03:20]} 19. Nd2 {[%emt 0:04:22]} Nxf4 {[%emt 0:00:18]} 20. Nxe4 {[%emt 0:00:41]} dxe4 {[%emt 0:00:06]} 21. Qxe4 {[%emt 0:00:46]} Qg5 {[%emt 0:01:44]} 22. g3 {[%emt 0:03:36]} Nh5 {[%emt 0:04:41]} 23. Qd5+ {[%emt 0:06:42]} Qxd5+ {[%emt 0:00:25]} 24. Nxd5 {[%emt 0:00:02]} Rxf1+ {[%emt 0:05:53]} 25. Rxf1 {[%emt 0:00:03]} Re8 {[%emt 0:00:39]} 26. Kg2 {[%emt 0:04:06]} c6 {[%emt 0:00:48]} 27. Nf4 {[%emt 0:02:19]} Nxf4+ {[%emt 0:00:27]} 28. Rxf4 {[%emt 0:00:17]} Re2+ {[%emt 0:00:10]} 29. Rf2 {[%emt 0:00:09]} Re5 {[%emt 0:00:19]} 30. g4 {[%emt 0:02:07]} h5 {[%emt 0:02:02]} 31. Kg3 {[%emt 0:02:41]} hxg4 {[%emt 0:01:35]} 32. Kxg4 {[%emt 0:00:31]} Rd5 {[%emt 0:02:22]} 33. h4 {[%emt 0:00:24]} g6 {[%emt 0:01:07]} 34. a4 {[%emt 0:03:47]} a5 {[%emt 0:01:33]} 1/2-1/2

[Event "58th Akiba Rubinstein D 2022"]
[Site "Polanica-Zdroj"]
[Date "2022.08.13"]
[Round "1.23"]
[White "Wieczorek, Maja"]
[Black "Urbanski, Wojciech"]
[Result "0-1"]
[ECO "A04"]
[WhiteElo "1260"]
[BlackElo "1632"]
[Annotator "NA RC COMBH"]
[PlyCount "64"]
[EventDate "2022.08.13"]
[EventCountry "POL"]
[SourceTitle "playchess.com"]
[Source "ChessBase"]
[SourceQuality "1"]
[TimeControl "40/5400+30:1800+30"]

1. Nf3 {[%emt 0:00:03]} c5 {[%emt 0:00:40]} 2. g3 {[%emt 0:00:28]} Nf6 {[%emt 0:00:45]} 3. Bg2 {[%emt 0:00:26]} d6 {[%emt 0:00:19]} 4. d3 {[%emt 0:00:43]} e6 {[%emt 0:00:30]} 5. O-O {[%emt 0:01:04]} Be7 {[%emt 0:01:14]} 6. e4 {[%emt 0:01:17]} Nbd7 {[%emt 0:02:10]} 7. Nc3 {[%emt 0:00:45]} a6 {[%emt 0:00:56]} 8. a4 {[%emt 0:00:42]} O-O {[%emt 0:01:55]} 9. Nh4 {[%emt 0:05:37]} Ne8 {[%emt 0:03:40]} 10. Nf3 {[%emt 0:06:11]} b6 {[%emt 0:03:10]} 11. Ne1 {[%emt 0:01:50]} Bb7 {[%emt 0:05:35]} 12. f4 {[%emt 0:01:09]} Nc7 13. Qg4 {[%emt 0:04:59]} Nf6 {[%emt 0:04:49]} 14. Qe2 {[%emt 0:02:57]} b5 {[%emt 0:01:30]} 15. e5 {[%emt 0:07:29]} Nfd5 {[%emt 0:04:03]} 16. Ne4 {[%emt 0:01:41]} b4 {[%emt 0:13:15]} 17. c4 {[%emt 0:08:44]} bxc3 {[%emt 0:00:49]} 18. bxc3 {[%emt 0:00:14]} f5 {[%emt 0:01:40]} 19. exf6 {[%emt 0:05:27]} gxf6 {[%emt 0:10:54]} 20. Bb2 {[%emt 0:12:44]} f5 {[%emt 0:04:19]} 21. c4 {[%emt 0:13:24]} Nb4 {[%emt 0:04:45]} 22. Nd2 {[%emt 0:03:33]} Rb8 23. Ndf3 {[%emt 0:06:36]} Re8 {[%emt 0:05:20]} 24. h4 {[%emt 0:03:06]} Bf6 {[%emt 0:03:55]} 25. d4 {[%emt 0:02:46]} Be4 {[%emt 0:01:50]} 26. Ng5 {[%emt 0:01:44]} Bxg2 {[%emt 0:08:04]} 27. Qxg2 {[%emt 0:02:27]} cxd4 {[%emt 0:01:09]} 28. Qe2 {[%emt 0:01:58]} h6 {[%emt 0:02:56]} 29. Ngf3 {[%emt 0:00:57]} e5 {[%emt 0:02:48]} 30. Qg2 {[%emt 0:01:49]} Nc6 {[%emt 0:02:11]} 31. h5 {[%emt 0:01:17]} Kh8 {[%emt 0:01:25]} 32. fxe5 dxe5 0-1

[Event "58th Akiba Rubinstein D 2022"]
[Site "Polanica-Zdroj"]
[Date "2022.08.13"]
[Round "1.24"]
[White "Stepinski, Piotr"]
[Black "Misiek, Stanislaw"]
[Result "1/2-1/2"]
[ECO "C55"]
[WhiteElo "1568"]
[BlackElo "1427"]
[Annotator "NA RC COMBH"]
[PlyCount "96"]
[EventDate "2022.08.13"]
[EventCountry "POL"]
[SourceTitle "playchess.com"]
[Source "ChessBase"]
[SourceQuality "1"]
[TimeControl "40/5400+30:1800+30"]

1. e4 {[%emt 0:00:08]} e5 {[%emt 0:00:09]} 2. Nf3 {[%emt 0:00:05]} Nc6 {[%emt 0:00:11]} 3. d4 {[%emt 0:00:12]} exd4 {[%emt 0:00:23]} 4. Bc4 {[%emt 0:00:07]} Nf6 {[%emt 0:00:21]} 5. e5 {[%emt 0:00:29]} Ne4 {[%emt 0:00:39]} 6. Bd5 {[%emt 0:02:36]} Nc5 {[%emt 0:00:55]} 7. O-O {[%emt 0:03:18]} Ne6 {[%emt 0:06:07]} 8. Nbd2 {[%emt 0:04:04]} Be7 {[%emt 0:03:28]} 9. Nb3 {[%emt 0:04:51]} O-O {[%emt 0:02:02]} 10. Nbxd4 {[%emt 0:04:46]} Nexd4 {[%emt 0:03:55]} 11. Nxd4 {[%emt 0:00:08]} Nxe5 {[%emt 0:04:30]} 12. Bf4 {[%emt 0:00:55]} Ng6 {[%emt 0:01:42]} 13. Bg3 {[%emt 0:00:04]} c6 {[%emt 0:00:29]} 14. Bb3 {[%emt 0:01:42]} d5 {[%emt 0:00:41]} 15. c3 {[%emt 0:03:55]} Bd6 {[%emt 0:04:55]} 16. Re1 {[%emt 0:00:56]} Bxg3 {[%emt 0:04:22]} 17. hxg3 {[%emt 0:00:10]} Bd7 {[%emt 0:00:22]} 18. Qd2 {[%emt 0:00:44]} Qc7 {[%emt 0:02:08]} 19. Re3 {[%emt 0:02:23]} Rae8 {[%emt 0:01:18]} 20. Rae1 {[%emt 0:00:17]} Rxe3 {[%emt 0:03:11]} 21. Rxe3 {[%emt 0:00:51]} Re8 {[%emt 0:00:14]} 22. Rxe8+ {[%emt 0:00:47]} Bxe8 {[%emt 0:00:09]} 23. Nf3 {[%emt 0:00:20]} Qe7 {[%emt 0:11:11]} 24. Bc2 {[%emt 0:01:17]} f6 {[%emt 0:05:10]} 25. Kf1 {[%emt 0:05:46]} Qc5 {[%emt 0:05:04]} 26. Qe2 {[%emt 0:01:19]} Bf7 {[%emt 0:03:18]} 27. Bxg6 {[%emt 0:07:27]} hxg6 {[%emt 0:00:11]} 28. Nd4 {[%emt 0:00:23]} Qc4 {[%emt 0:05:31]} 29. Qxc4 {[%emt 0:00:08]} dxc4 {[%emt 0:00:15]} 30. Ke2 {[%emt 0:00:28]} Bd5 {[%emt 0:00:05]} 31. f3 {[%emt 0:00:17]} Kf7 {[%emt 0:00:40]} 32. Ke3 {[%emt 0:00:12]} Ke7 {[%emt 0:01:18]} 33. Ne2 {[%emt 0:03:06]} Kd6 {[%emt 0:01:42]} 34. Kd4 {[%emt 0:03:02]} a5 {[%emt 0:01:18]} 35. Nf4 {[%emt 0:09:18]} Bf7 {[%emt 0:02:14]} 36. Nh3 {[%emt 0:00:45]} b5 {[%emt 0:02:36]} 37. a3 {[%emt 0:02:03]} c5+ {[%emt 0:00:15]} 38. Ke3 {[%emt 0:00:01]} b4 {[%emt 0:00:58]} 39. Nf2 {[%emt 0:00:50]} Kc6 {[%emt 0:01:30]} 40. axb4 {[%emt 0:10:56]} cxb4 {[%emt 0:00:20]} 41. Kd4 {[%emt 0:30:43]} Kb5 {[%emt 0:31:08]} 42. Ne4 {[%emt 0:01:46]} bxc3 {[%emt 0:05:11]} 43. Kxc3 {[%emt 0:00:12]} Kc6 {[%emt 0:01:23]} 44. Nd2 {[%emt 0:00:42]} g5 {[%emt 0:02:38]} 45. Nxc4 {[%emt 0:14:57]} Bxc4 {[%emt 0:00:58]} 46. Kxc4 {[%emt 0:00:26]} f5 {[%emt 0:00:06]} 47. Kb3 {[%emt 0:01:57]} Kb5 {[%emt 0:00:29]} 48. Ka3 {[%emt 0:00:05]} g4 1/2-1/2

[Event "58th Akiba Rubinstein D 2022"]
[Site "Polanica-Zdroj"]
[Date "2022.08.14"]
[Round "2.1"]
[White "Serewa, Antoni"]
[Black "Owoc, Jakub"]
[Result "1/2-1/2"]
[ECO "E61"]
[WhiteElo "1542"]
[BlackElo "1756"]
[Annotator "NA RC"]
[PlyCount "95"]
[EventDate "2022.08.13"]
[EventCountry "POL"]
[SourceTitle "playchess.com"]
[Source "ChessBase"]
[SourceQuality "1"]
[TimeControl "40/5400+30:1800+30"]

1. d4 {[%emt 0:00:01]} Nf6 {[%emt 0:00:07]} 2. c4 {[%emt 0:00:05]} g6 {[%emt 0:00:04]} 3. Nc3 {[%emt 0:00:04]} Bg7 {[%emt 0:00:06]} 4. Nf3 {[%emt 0:00:06]} O-O {[%emt 0:00:14]} 5. Bg5 {[%emt 0:00:05]} h6 {[%emt 0:01:05]} 6. Bh4 {[%emt 0:00:14]} c5 {[%emt 0:00:31]} 7. e3 {[%emt 0:00:09]} cxd4 {[%emt 0:00:17]} 8. exd4 {[%emt 0:00:11]} d6 {[%emt 0:00:13]} 9. Be2 {[%emt 0:01:24]} Nbd7 {[%emt 0:03:50]} 10. O-O {[%emt 0:01:53]} g5 {[%emt 0:13:08]} 11. Bg3 {[%emt 0:00:07]} Nh5 {[%emt 0:00:19]} 12. Qd2 {[%emt 0:12:39]} Nxg3 {[%emt 0:08:53]} 13. hxg3 {[%emt 0:00:06]} Nf6 {[%emt 0:00:55]} 14. d5 {[%emt 0:05:20]} Bd7 {[%emt 0:06:46]} 15. Rac1 {[%emt 0:03:16]} Qb6 {[%emt 0:00:32]} 16. Rfd1 {[%emt 0:05:33]} Ng4 {[%emt 0:01:31]} 17. Nd4 {[%emt 0:03:07]} Rac8 {[%emt 0:05:28]} 18. b3 {[%emt 0:01:22]} a6 {[%emt 0:07:25]} 19. Bf3 {[%emt 0:24:34]} Ne5 {[%emt 0:01:47]} 20. Be4 {[%emt 0:00:43]} f5 {[%emt 0:00:09]} 21. Bb1 {[%emt 0:00:25]} Ng4 {[%emt 0:08:52]} 22. f3 {[%emt 0:07:24]} Qxd4+ {[%emt 0:02:41]} 23. Qxd4 {[%emt 0:00:10]} Bxd4+ {[%emt 0:00:01]} 24. Rxd4 {[%emt 0:00:10]} Ne5 {[%emt 0:00:15]} 25. Rdd1 {[%emt 0:13:35]} b5 {[%emt 0:03:57]} 26. cxb5 {[%emt 0:00:57]} axb5 {[%emt 0:00:07]} 27. Ne2 {[%emt 0:00:11]} Kg7 {[%emt 0:00:40]} 28. Rxc8 {[%emt 0:05:29]} Rxc8 {[%emt 0:00:05]} 29. Rc1 {[%emt 0:00:03]} Rc5 {[%emt 0:01:14]} 30. Rd1 {[%emt 0:05:05]} Kf6 {[%emt 0:01:20]} 31. b4 {[%emt 0:09:55]} Rc4 {[%emt 0:02:37]} 32. Rd4 {[%emt 0:00:28]} Rc7 {[%emt 0:02:35]} 33. Kf2 {[%emt 0:00:47]} Ra7 {[%emt 0:01:50]} 34. Ke1 {[%emt 0:01:09]} Nc4 {[%emt 0:00:33]} 35. Nc3 {[%emt 0:00:27]} Ra3 {[%emt 0:05:46]} 36. Rd3 {[%emt 0:00:13]} Ke5 {[%emt 0:01:39]} 37. Bc2 {[%emt 0:00:58]} f4 {[%emt 0:01:14]} 38. gxf4+ {[%emt 0:00:22]} gxf4 {[%emt 0:00:04]} 39. Bb3 {[%emt 0:00:10]} Ne3 {[%emt 0:02:05]} 40. Kf2 {[%emt 0:00:09]} Nf5 {[%emt 0:03:12]} 41. Ne2 {[%emt 0:30:07]} Ra8 {[%emt 0:30:40]} 42. Rd1 {[%emt 0:00:28]} Rg8 {[%emt 0:03:57]} 43. Re1 {[%emt 0:00:43]} Nh4 {[%emt 0:00:26]} 44. g3 {[%emt 0:00:12]} fxg3+ {[%emt 0:00:30]} 45. Nxg3+ {[%emt 0:00:03]} Kf6 {[%emt 0:01:00]} 46. Rh1 {[%emt 0:00:21]} Ng6 {[%emt 0:03:03]} 47. Rxh6 {[%emt 0:00:06]} Ke5 {[%emt 0:00:40]} 48. Rh1 {[%emt 0:00:31]} 1/2-1/2

[Event "58th Akiba Rubinstein D 2022"]
[Site "Polanica-Zdroj"]
[Date "2022.08.14"]
[Round "2.2"]
[White "Perek, Oskar"]
[Black "Penza, Denis"]
[Result "1/2-1/2"]
[ECO "C01"]
[WhiteElo "1555"]
[BlackElo "1836"]
[Annotator "NA RC"]
[PlyCount "37"]
[EventDate "2022.08.13"]
[EventCountry "POL"]
[SourceTitle "playchess.com"]
[Source "ChessBase"]
[SourceQuality "1"]
[TimeControl "40/5400+30:1800+30"]

1. e4 {[%emt 0:00:06]} e6 {[%emt 0:00:10]} 2. d4 {[%emt 0:00:15]} d5 {[%emt 0:00:04]} 3. exd5 {[%emt 0:00:09]} exd5 {[%emt 0:00:05]} 4. Nf3 {[%emt 0:00:24]} Nf6 {[%emt 0:00:12]} 5. Bd3 {[%emt 0:00:13]} Bd6 {[%emt 0:00:17]} 6. Bg5 {[%emt 0:00:35]} O-O {[%emt 0:00:16]} 7. O-O {[%emt 0:00:37]} Bg4 {[%emt 0:00:18]} 8. Nbd2 {[%emt 0:00:23]} Nbd7 {[%emt 0:00:32]} 9. c3 {[%emt 0:00:44]} c5 {[%emt 0:02:26]} 10. dxc5 {[%emt 0:04:12]} Nxc5 {[%emt 0:01:12]} 11. Bc2 {[%emt 0:00:11]} Ne6 {[%emt 0:06:07]} 12. Bh4 {[%emt 0:02:01]} Nf4 {[%emt 0:07:15]} 13. Bb3 {[%emt 0:03:23]} Bc5 {[%emt 0:05:38]} 14. Qc2 {[%emt 0:07:13]} Qd6 {[%emt 0:10:49]} 15. Rad1 {[%emt 0:04:52]} Bh5 {[%emt 0:03:33]} 16. Nc4 {[%emt 0:03:20]} Qa6 {[%emt 0:10:45]} 17. Nce5 {[%emt 0:02:25]} Rfe8 {[%emt 0:13:23]} 18. Rfe1 {[%emt 0:11:13]} Bxf3 {[%emt 0:10:05]} (18... Bd6 $142 19. Qf5 Bxe5 20. Rxe5 Rxe5 21. Qxe5 Ng6) 19. Nxf3 $15 {[%emt 0:13:15]} (19. gxf3 $11 Rad8 20. Qf5) 1/2-1/2

[Event "58th Akiba Rubinstein D 2022"]
[Site "Polanica-Zdroj"]
[Date "2022.08.14"]
[Round "2.3"]
[White "Sola, Wojciech"]
[Black "Bednarkiewicz, Jakub"]
[Result "1/2-1/2"]
[ECO "A16"]
[WhiteElo "1780"]
[BlackElo "1545"]
[Annotator "NA RC"]
[PlyCount "94"]
[EventDate "2022.08.13"]
[EventCountry "POL"]
[SourceTitle "playchess.com"]
[Source "ChessBase"]
[SourceQuality "1"]
[TimeControl "40/5400+30:1800+30"]

1. c4 {[%emt 0:00:06]} Nf6 {[%emt 0:00:09]} 2. Nc3 {[%emt 0:00:30]} Nc6 {[%emt 0:00:32]} 3. Nf3 {[%emt 0:01:38]} e5 {[%emt 0:00:30]} 4. d4 {[%emt 0:02:43]} exd4 {[%emt 0:00:12]} 5. Nxd4 {[%emt 0:00:08]} Bb4 {[%emt 0:00:32]} 6. Nxc6 {[%emt 0:03:06]} Bxc3+ {[%emt 0:00:23]} 7. bxc3 {[%emt 0:00:09]} bxc6 {[%emt 0:00:04]} 8. Bg5 {[%emt 0:01:17]} Qe7 {[%emt 0:06:49]} 9. e3 {[%emt 0:04:19]} Qe5 {[%emt 0:02:00]} 10. Bxf6 {[%emt 0:00:27]} Qxf6 {[%emt 0:00:02]} 11. Qd4 {[%emt 0:00:01]} Ke7 {[%emt 0:16:43]} 12. Bd3 {[%emt 0:18:24]} Rb8 {[%emt 0:08:15]} 13. c5 {[%emt 0:12:39]} Qxd4 {[%emt 0:06:47]} 14. cxd4 {[%emt 0:01:36]} d6 {[%emt 0:07:43]} 15. cxd6+ {[%emt 0:09:03]} cxd6 {[%emt 0:00:43]} 16. O-O {[%emt 0:00:31]} Be6 {[%emt 0:02:07]} 17. Rfc1 {[%emt 0:03:25]} Rb6 {[%emt 0:03:39]} 18. Kf1 {[%emt 0:05:23]} Rc8 {[%emt 0:06:05]} 19. Rc2 {[%emt 0:04:06]} c5 {[%emt 0:03:46]} 20. dxc5 {[%emt 0:08:56]} dxc5 {[%emt 0:05:03]} 21. Rac1 {[%emt 0:09:28]} c4 {[%emt 0:02:48]} 22. Be4 {[%emt 0:06:35]} Rcb8 {[%emt 0:01:53]} 23. Ke1 {[%emt 0:02:14]} Kd6 {[%emt 0:01:37]} 24. f4 {[%emt 0:00:22]} f5 {[%emt 0:01:04]} 25. Bf3 {[%emt 0:00:18]} Rb1 {[%emt 0:03:23]} 26. Kd2 {[%emt 0:01:58]} Rxc1 {[%emt 0:01:02]} 27. Kxc1 {[%emt 0:00:09]} Kc5 {[%emt 0:00:52]} 28. h3 {[%emt 0:00:46]} Rd8 {[%emt 0:02:41]} 29. Be2 {[%emt 0:01:11]} Kb4 {[%emt 0:03:19]} 30. g4 {[%emt 0:01:10]} c3 {[%emt 0:01:23]} 31. a3+ {[%emt 0:01:12]} Kxa3 {[%emt 0:02:17]} 32. Rxc3+ {[%emt 0:00:03]} Kb4 {[%emt 0:00:28]} 33. Rc6 {[%emt 0:01:42]} Rc8 {[%emt 0:00:14]} 34. Rxc8 {[%emt 0:00:03]} Bxc8 {[%emt 0:00:01]} 35. Kb2 {[%emt 0:00:36]} a5 {[%emt 0:00:31]} 36. Bd3 {[%emt 0:00:52]} fxg4 {[%emt 0:00:33]} 37. hxg4 {[%emt 0:00:01]} Bxg4 {[%emt 0:00:28]} 38. Bxh7 {[%emt 0:00:03]} Be6 {[%emt 0:02:14]} 39. f5 {[%emt 0:01:45]} Bd5 {[%emt 0:02:41]} 40. e4 {[%emt 0:00:18]} Bf7 {[%emt 0:03:10]} 41. e5 {[%emt 0:30:41]} Kc5 {[%emt 0:31:19]} 42. e6 {[%emt 0:00:32]} Be8 {[%emt 0:00:16]} 43. Bg8 {[%emt 0:00:37]} Kd6 {[%emt 0:00:56]} 44. Kc3 {[%emt 0:00:47]} Ke7 {[%emt 0:00:48]} 45. Kc4 {[%emt 0:00:28]} Kf6 {[%emt 0:01:10]} 46. Bh7 {[%emt 0:00:02]} Ke5 {[%emt 0:01:13]} 47. Kb3 {[%emt 0:00:41]} Kf6 {[%emt 0:01:34]} 1/2-1/2